bitfinex/quotes_BTCUSD_20220101
["timestamp","ask_amount","ask_price","bid_price","bid_amount"]
[1641019244697,0.02010842,47176.0,47175.0,0.71003334]
[1641019244898,0.02010842,47176.0,47175.0,0.69107044]
[1641019245900,0.00799954,47176.0,47175.0,0.69107044]
[1641019246301,0.00799954,47176.0,47175.0,0.71180968]
[1641019246503,0.00799954,47176.0,47175.0,0.69181518]
[1641019246798,0.00799954,47176.0,47175.0,0.69042792]
[1641019247815,0.00799954,47176.0,47175.0,0.71222786]
[1641019248018,0.00799954,47176.0,47175.0,0.69287588]
[1641019248816,0.00799954,47176.0,47175.0,0.69105103]
[1641019249715,0.00799954,47176.0,47175.0,0.71052947]
[1641019249918,0.00799954,47176.0,47175.0,0.69055438]
[1641019250716,0.00799954,47176.0,47175.0,0.70927939]
[1641019250974,0.00799954,47176.0,47175.0,0.68980095]
[1641019251172,0.00799954,47176.0,47175.0,1.81280095]
[1641019251370,0.00979209,47177.0,47175.0,1.81280095]
[1641019251671,0.00979209,47177.0,47176.0,1.74743158]
[1641019251968,0.01008422,47177.0,47176.0,0.62443158]
[1641019252367,0.01869422,47177.0,47176.0,0.62443158]
[1641019252769,0.01869422,47177.0,47176.0,0.64298211]
[1641019253771,0.01869422,47177.0,47176.0,0.66108442]
[1641019253971,0.0180787,47177.0,47176.0,0.64253389]
[1641019254172,0.0180787,47177.0,47176.0,0.35775631]
[1641019254624,0.0180787,47177.0,47176.0,0.01810231]
[1641019254824,0.0180787,47177.0,47176.0,0.03683815]
[1641019255023,0.0180787,47177.0,47176.0,0.01873584]
[1641019255024,0.0094687,47177.0,47176.0,0.01873584]
[1641019255226,0.41694997,47177.0,47176.0,0.01873584]
[1641019256526,0.51694997,47177.0,47169.0,0.30442242]
[1641019256726,0.46394497,47177.0,47169.0,0.30442242]
[1641019256927,0.46394497,47177.0,47170.0,0.339654]
[1641019256928,0.05301,47173.0,47170.0,0.339654]
[1641019257327,0.00020084,47172.0,47170.0,0.339654]
[1641019257727,0.00018258,47171.0,47170.0,0.35770552]
[1641019258771,0.00018258,47171.0,47170.0,0.37627917]
[1641019258969,0.00018258,47171.0,47170.0,0.35822765]
[1641019259169,0.00853738,47172.0,47170.0,0.35822765]
[1641019259768,0.00853738,47172.0,47170.0,0.37821882]
[1641019259970,0.00853738,47172.0,47170.0,0.35964517]
[1641019260171,0.053013,47171.0,47170.0,0.01999117]
[1641019260769,0.053013,47171.0,47170.0,0.04086287]
[1641019260970,0.34390491,47171.0,47170.0,0.0208717]
[1641019261169,0.39390491,47171.0,47170.0,0.0208717]
[1641019261972,0.39390491,47171.0,47166.0,0.53019296]
[1641019262216,0.053016,47168.0,47166.0,0.53019296]
[1641019262417,0.053016,47168.0,47167.0,0.33972703]
[1641019262616,0.05,47170.0,47167.0,0.33972703]
[1641019262918,0.06855052,47171.0,47167.0,0.33972703]
[1641019263116,0.05,47171.0,47167.0,0.33972703]
[1641019263317,0.02100115,47171.0,47167.0,0.33972703]
[1641019263922,0.02100115,47171.0,47167.0,0.36049138]
[1641019264121,0.00853738,47172.0,47167.0,0.36049138]
[1641019264823,0.00853738,47172.0,47167.0,0.37941928]
[1641019265023,0.00853738,47172.0,47167.0,0.97876509]
[1641019265223,0.00853738,47172.0,47167.0,0.95800074]
[1641019265888,0.00853738,47172.0,47167.0,0.37911155]
[1641019266079,0.00853738,47172.0,47167.0,0.36018365]
[1641019266279,0.06154938,47172.0,47167.0,0.36018365]
[1641019266482,0.00853738,47172.0,47167.0,0.36018365]
[1641019266681,0.00853738,47172.0,47167.0,0.95952946]
[1641019266980,0.00853738,47172.0,47167.0,0.97957476]
[1641019267180,0.00853738,47172.0,47167.0,0.95911814]
[1641019267984,0.00853738,47172.0,47167.0,0.38107382]
[1641019268183,0.00853738,47172.0,47167.0,0.36102852]
[1641019268986,0.00853738,47172.0,47167.0,0.96037433]
[1641019269632,0.00853738,47172.0,47168.0,0.59934581]
[1641019269833,0.00853738,47172.0,47169.0,0.339654]
[1641019270836,0.00853738,47172.0,47169.0,0.35894836]
[1641019271936,0.00853738,47172.0,47169.0,0.37955343]
[1641019272137,0.00853738,47172.0,47169.0,0.36025907]
[1641019272739,0.00118223,47171.0,47169.0,0.36025907]
[1641019272938,0.00118223,47171.0,47170.0,0.60182442]
[1641019273874,0.00118223,47171.0,47170.0,0.35836227]
[1641019274878,0.00118223,47171.0,47170.0,0.3802016]
[1641019275077,0.00118223,47171.0,47170.0,0.36149333]
[1641019275879,0.00118223,47171.0,47170.0,0.38343738]
[1641019276080,0.00118223,47171.0,47170.0,0.62320772]
[1641019276884,0.00118223,47171.0,47170.0,0.64516714]
[1641019277128,0.00118223,47171.0,47170.0,0.62322309]
[1641019277930,0.00118223,47171.0,47170.0,0.64314508]
[1641019278130,0.00118223,47171.0,47170.0,0.62118566]
[1641019278536,0.00118223,47171.0,47170.0,1.22101718]
[1641019278733,0.00118223,47171.0,47170.0,1.23006763]
[1641019278929,0.00118223,47171.0,47170.0,1.24886617]
[1641019279131,0.00118223,47171.0,47170.0,0.62911266]
[1641019279331,0.00118223,47171.0,47170.0,1.75211266]
[1641019279534,0.00118223,47171.0,47170.0,1.85211266]
[1641019279930,0.00118223,47171.0,47170.0,0.74952285]
[1641019280136,0.00118223,47171.0,47170.0,1.44016123]
[1641019280533,0.00118223,47171.0,47170.0,0.72167386]
[1641019280981,0.00118223,47171.0,47170.0,0.74342963]
[1641019281180,0.00118223,47171.0,47170.0,0.73206989]
[1641019281780,0.00118223,47171.0,47170.0,0.63206989]
[1641019281980,0.00118223,47171.0,47170.0,0.65072647]
[1641019282184,0.00118223,47171.0,47170.0,0.6289707]
[1641019282983,0.00118223,47171.0,47170.0,0.65005851]
[1641019283182,0.00118223,47171.0,47170.0,0.63140193]
[1641019283382,0.00092708,47171.0,47170.0,0.63140193]
[1641019283984,0.00092708,47171.0,47170.0,0.6515071]
[1641019284184,0.00092708,47171.0,47170.0,1.2294228]
[1641019284616,0.00092708,47171.0,47170.0,0.63041929]
[1641019285118,0.00092708,47171.0,47170.0,1.22899829]
[1641019285719,0.00092708,47171.0,47170.0,0.95910428]
[1641019286117,0.00092708,47171.0,47170.0,0.36063894]
[1641019287120,0.00092708,47171.0,47170.0,0.37960343]
[1641019287322,0.00092708,47171.0,47170.0,0.35861849]
[1641019288019,0.00092708,47171.0,47170.0,0.37937862]
[1641019288220,0.00092708,47171.0,47170.0,0.36041413]
[1641019289172,0.00092708,47171.0,47170.0,0.37964471]
[1641019290075,0.00092708,47171.0,47170.0,0.339654]
[1641019290274,0.00092708,47171.0,47170.0,0.36029968]
[1641019290675,0.00092708,47171.0,47170.0,1.07878705]
[1641019291074,0.00092708,47171.0,47170.0,0.36029968]
[1641019291775,0.00092708,47171.0,47170.0,0.35848032]
[1641019292229,0.00092708,47171.0,47170.0,0.36080994]
[1641019292830,0.00092708,47171.0,47170.0,1.07929731]
[1641019293129,0.00092708,47171.0,47170.0,1.09929031]
[1641019293329,0.00092708,47171.0,47170.0,1.07813437]
[1641019294129,0.00092708,47171.0,47170.0,1.09675148]
[1641019294332,0.00092708,47171.0,47170.0,1.07675848]
[1641019294529,0.00092708,47171.0,47170.0,0.35827111]
[1641019295132,0.00092708,47171.0,47170.0,0.3780562]
[1641019295331,0.00092708,47171.0,47170.0,0.35943909]
[1641019295529,0.00092708,47171.0,47170.0,1.07792646]
[1641019296175,0.00092708,47171.0,47170.0,1.09727336]
[1641019296978,0.00092708,47171.0,47170.0,1.05814137]
[1641019297175,0.00092708,47171.0,47170.0,0.36083798]
[1641019297776,0.00092708,47171.0,47170.0,0.96026223]
[1641019298177,0.00118221,47171.0,47170.0,0.37968496]
[1641019298375,0.00118221,47171.0,47170.0,0.35850098]
[1641019299176,0.00118221,47171.0,47170.0,0.37962422]
[1641019299375,0.00118221,47171.0,47170.0,0.36077724]
[1641019299845,0.00118221,47171.0,47170.0,0.96020149]
[1641019300243,0.00118221,47171.0,47170.0,0.9784268]
[1641019300449,0.00118221,47171.0,47170.0,0.95730356]
[1641019300849,0.00118221,47171.0,47170.0,0.35787931]
[1641019301245,0.00118221,47171.0,47170.0,0.3769668]
[1641019301446,0.00118221,47171.0,47170.0,0.35874149]
[1641019302146,0.00118221,47171.0,47170.0,0.37721183]
[1641019302347,0.00118221,47171.0,47170.0,0.35812434]
[1641019303786,0.00118221,47171.0,47170.0,0.37907615]
[1641019303986,0.00118221,47171.0,47170.0,0.36060581]
[1641019304187,0.00118221,47171.0,47170.0,0.38166573]
[1641019304387,0.00118221,47171.0,47170.0,0.36071392]
[1641019305191,0.00118221,47171.0,47170.0,0.37878977]
[1641019306191,0.00118221,47171.0,47170.0,0.39841798]
[1641019306392,0.00118221,47171.0,47170.0,0.35928221]
[1641019307820,0.00118221,47171.0,47170.0,0.38012251]
[1641019308022,0.00118221,47171.0,47170.0,0.3604943]
[1641019308225,0.00118221,47171.0,47170.0,0.38107524]
[1641019308621,0.00118221,47171.0,47170.0,0.339654]
[1641019309120,0.00118221,47171.0,47170.0,0.35861466]
[1641019310221,0.00118221,47171.0,47170.0,0.37975488]
[1641019310421,0.00118221,47171.0,47170.0,0.36079422]
[1641019311279,0.00118221,47171.0,47170.0,0.38187468]
[1641019311480,0.00118221,47171.0,47170.0,0.36073446]
[1641019312179,0.00118221,47171.0,47170.0,0.37919763]
[1641019313383,0.00118221,47171.0,47170.0,0.35779271]
[1641019314282,0.00118221,47171.0,47170.0,0.37924246]
[1641019314483,0.00118221,47171.0,47170.0,0.36110375]
[1641019315337,0.00118221,47171.0,47170.0,0.38060715]
[1641019315537,0.00118221,47171.0,47170.0,0.3591574]
[1641019316236,0.00118221,47171.0,47170.0,0.38023337]
[1641019316437,0.00118221,47171.0,47170.0,0.36072997]
[1641019317838,0.00118221,47171.0,47170.0,0.38136988]
[1641019318037,0.00118221,47171.0,47170.0,0.36029391]
[1641019318238,0.00118221,47171.0,47170.0,0.3805711]
[1641019318478,0.00118221,47171.0,47170.0,0.35993119]
[1641019319877,0.00118221,47171.0,47170.0,0.37971976]
[1641019320178,0.05419321,47171.0,47170.0,0.37971976]
[1641019320777,0.05419321,47171.0,47170.0,0.339654]
[1641019321079,0.05419321,47171.0,47170.0,0.36116108]
[1641019321279,0.05419321,47171.0,47170.0,0.38261709]
[1641019321678,0.05419321,47171.0,47170.0,0.36111001]
[1641019322324,0.05419321,47171.0,47170.0,0.37993887]
[1641019322524,0.05419321,47171.0,47170.0,0.35848286]
[1641019323326,0.05419321,47171.0,47170.0,0.37884304]
[1641019323525,0.05419321,47171.0,47170.0,0.36001418]
[1641019323930,0.00118221,47171.0,47170.0,0.36001418]
[1641019324328,0.00118221,47171.0,47170.0,0.38194368]
[1641019324528,0.00118221,47171.0,47170.0,0.3615835]
[1641019324929,0.00118221,47171.0,47170.0,0.3545835]
[1641019325328,0.00118221,47171.0,47170.0,0.37476025]
[1641019325528,0.00118221,47171.0,47170.0,0.35283075]
[1641019326380,0.00118221,47171.0,47170.0,0.3747544]
[1641019327379,0.00118221,47171.0,47170.0,0.39674438]
[1641019327582,0.00118221,47171.0,47170.0,0.35464398]
[1641019328380,0.00118221,47171.0,47170.0,0.37274161]
[1641019328580,0.00118221,47171.0,47170.0,0.35075163]
[1641019329383,0.00118221,47171.0,47170.0,0.3697488]
[1641019329618,0.00118221,47171.0,47170.0,0.35165117]
[1641019330421,0.00118221,47171.0,47170.0,0.37264662]
[1641019330620,0.00118221,47171.0,47170.0,0.35364945]
[1641019331423,0.00118221,47171.0,47170.0,0.3744195]
[1641019331624,0.00118221,47171.0,47170.0,0.35342405]
[1641019332425,0.00118221,47171.0,47170.0,0.37307549]
[1641019332626,0.00118221,47171.0,47170.0,0.35230544]
[1641019333470,0.00118221,47171.0,47170.0,0.3537418]
[1641019334270,0.00118221,47171.0,47170.0,0.37302484]
[1641019334671,0.00118221,47171.0,47170.0,0.35193704]
[1641019335473,0.00118221,47171.0,47170.0,0.37355729]
[1641019335673,0.00118221,47171.0,47170.0,0.35427425]
[1641019336273,0.00118221,47171.0,47170.0,0.37423107]
[1641019336474,0.00118221,47171.0,47170.0,0.35261082]
[1641019337436,0.00118221,47171.0,47170.0,0.35323585]
[1641019338437,0.00118221,47171.0,47170.0,0.37152424]
[1641019338638,0.00118221,47171.0,47170.0,0.35094239]
[1641019339339,0.00118221,47171.0,47170.0,0.37083105]
[1641019339540,0.00118221,47171.0,47170.0,0.35254266]
[1641019340342,0.00118221,47171.0,47170.0,0.37095593]
[1641019340540,0.00118221,47171.0,47170.0,0.35106727]
[1641019342197,0.00118221,47171.0,47170.0,0.35377027]
[1641019342399,0.00118221,47171.0,47170.0,0.37424171]
[1641019342597,0.00118221,47171.0,47170.0,0.35312544]
[1641019343399,0.00118221,47171.0,47170.0,0.37266898]
[1641019343697,0.00118221,47171.0,47170.0,0.35219754]
[1641019344098,0.00151008,47171.0,47170.0,0.35219754]
[1641019344298,0.00151008,47171.0,47170.0,0.37219765]
[1641019344499,0.00151008,47171.0,47170.0,0.35265411]
[1641019345542,0.00151008,47171.0,47170.0,0.35133366]
[1641019346441,0.00151008,47171.0,47170.0,0.37199465]
[1641019346640,0.00151008,47171.0,47170.0,0.35331499]
[1641019347343,0.00151008,47171.0,47170.0,0.37164276]
[1641019347546,0.00151008,47171.0,47170.0,0.35098177]
[1641019348391,0.00151008,47171.0,47170.0,0.3700425]
[1641019348591,0.00151008,47171.0,47170.0,0.35171473]
[1641019349490,0.00151008,47171.0,47170.0,0.37053038]
[1641019349689,0.00151008,47171.0,47170.0,0.35146965]
[1641019351093,0.00151008,47171.0,47170.0,0.37022965]
[1641019351293,0.00151008,47171.0,47170.0,0.351414]
[1641019351493,0.00151008,47171.0,47170.0,0.37128614]
[1641019351694,0.00151008,47171.0,47170.0,0.35252614]
[1641019352532,0.00151008,47171.0,47170.0,0.37227054]
[1641019352732,0.00151008,47171.0,47170.0,0.3523984]
[1641019353628,0.00151008,47171.0,47170.0,0.35178076]
[1641019354431,0.00151008,47171.0,47170.0,0.37187618]
[1641019354731,0.00151008,47171.0,47170.0,0.35274942]
[1641019355531,0.00151008,47171.0,47170.0,0.3728886]
[1641019355733,0.00151008,47171.0,47170.0,0.35279318]
[1641019356603,0.00151008,47171.0,47170.0,0.37333719]
[1641019356803,0.00151008,47171.0,47170.0,0.35319801]
[1641019357501,0.00151008,47171.0,47170.0,0.37132052]
[1641019357701,0.00151008,47171.0,47170.0,0.35077651]
[1641019358602,0.00151008,47171.0,47170.0,0.36901707]
[1641019359631,0.00151008,47171.0,47170.0,0.38999496]
[1641019359829,0.01210722,47175.0,47170.0,0.74243233]
[1641019360029,0.01210722,47175.0,47174.0,0.339654]
[1641019360428,0.01218025,47175.0,47174.0,0.339654]
[1641019360631,0.01218025,47175.0,47174.0,0.94586887]
[1641019360831,0.01218025,47175.0,47174.0,0.95491932]
[1641019361030,7.303e-05,47175.0,47174.0,1.00790932]
[1641019361230,7.303e-05,47175.0,47174.0,2.13090932]
[1641019361430,7.303e-05,47175.0,47174.0,1.02751964]
[1641019361630,7.303e-05,47175.0,47174.0,1.62694389]
[1641019362431,7.303e-05,47175.0,47174.0,1.72694389]
[1641019362732,7.303e-05,47175.0,47174.0,2.27156693]
[1641019362930,7.303e-05,47175.0,47174.0,1.14856693]
[1641019363135,7.303e-05,47175.0,47174.0,1.74954154]
[1641019363385,7.303e-05,47175.0,47174.0,1.74049109]
[1641019363576,0.00975973,47187.0,47177.0,1.26]
[1641019363776,0.00975973,47187.0,47182.0,0.052982]
[1641019364075,0.00975973,47187.0,47183.0,0.339412]
[1641019364277,0.0001,47191.0,47183.0,0.339412]
[1641019364676,0.00027387,47190.0,47184.0,0.59069453]
[1641019364875,0.00861,47189.0,47185.0,0.392396]
[1641019365077,0.00886561,47189.0,47185.0,0.392396]
[1641019365277,0.00023735,47188.0,47185.0,0.392396]
[1641019365680,0.0002191,47187.0,47185.0,0.36076232]
[1641019366077,0.00020084,47186.0,47185.0,0.36076232]
[1641019366577,0.00023735,47186.0,47185.0,0.38155272]
[1641019366776,0.00023735,47186.0,47185.0,0.3602024]
[1641019367628,0.00023735,47186.0,47185.0,0.38009823]
[1641019367829,0.00023735,47186.0,47185.0,0.35930783]
[1641019368630,0.00023735,47186.0,47185.0,0.37935502]
[1641019368828,0.00884735,47186.0,47185.0,0.35945919]
[1641019369232,0.00884735,47186.0,47185.0,0.62391913]
[1641019369430,0.00884735,47186.0,47185.0,0.72319728]
[1641019369630,0.00884735,47186.0,47185.0,0.74358955]
[1641019369830,0.00884735,47186.0,47185.0,0.72354236]
[1641019370030,0.00884735,47186.0,47185.0,0.8298298]
[1641019370432,0.00884735,47186.0,47185.0,1.53080441]
[1641019370630,0.00884735,47186.0,47185.0,1.54936087]
[1641019370884,0.00884735,47186.0,47185.0,0.82799399]
[1641019371679,0.00884735,47186.0,47185.0,0.74690415]
[1641019371879,0.00884735,47186.0,47185.0,0.83316346]
[1641019372683,0.00884735,47186.0,47185.0,0.85191019]
[1641019372882,0.00884735,47186.0,47185.0,0.83338744]
[1641019373684,0.00884735,47186.0,47185.0,0.85214408]
[1641019374927,0.00884735,47186.0,47185.0,0.70861805]
[1641019375227,0.00884735,47186.0,47185.0,0.72855472]
[1641019376229,0.00884735,47186.0,47185.0,0.74743039]
[1641019376429,0.00884735,47186.0,47185.0,0.46424067]
[1641019376629,0.00884735,47186.0,47185.0,0.74829623]
[1641019377629,0.00884735,47186.0,47185.0,0.77021444]
[1641019377930,0.00884735,47186.0,47185.0,0.72981018]
[1641019378132,0.00884735,47186.0,47185.0,0.82981018]
[1641019378577,0.00884735,47186.0,47185.0,0.72981018]
[1641019378779,0.00884735,47186.0,47185.0,0.72592693]
[1641019379777,0.00884735,47186.0,47185.0,0.74544962]
[1641019379977,0.00884735,47186.0,47185.0,0.72741466]
[1641019381381,0.00884735,47186.0,47185.0,0.74718173]
[1641019381580,0.00884735,47186.0,47185.0,0.72765904]
[1641019382323,0.00884735,47186.0,47185.0,0.95619102]
[1641019382524,0.00884735,47186.0,47185.0,2.21522515]
[1641019382724,0.00884735,47186.0,47185.0,2.22649036]
[1641019383023,0.00884735,47186.0,47185.0,2.20700883]
[1641019383724,0.00884735,47186.0,47185.0,2.22672931]
[1641019383927,0.00884735,47186.0,47185.0,2.2080014]
[1641019384725,0.00884735,47186.0,47185.0,2.22916264]
[1641019384926,0.00884735,47186.0,47185.0,2.20944216]
[1641019385885,0.00884735,47186.0,47185.0,2.22980988]
[1641019386085,0.00884735,47186.0,47185.0,2.20864864]
[1641019386490,0.00884735,47186.0,47185.0,2.1615618]
[1641019386884,0.00884735,47186.0,47185.0,2.19382492]
[1641019387787,0.00884735,47186.0,47185.0,2.21565165]
[1641019387985,0.00023735,47186.0,47185.0,2.19759446]
[1641019388785,0.00023735,47186.0,47185.0,2.21721208]
[1641019388988,0.00023735,47186.0,47185.0,2.19538535]
[1641019389834,0.00023735,47186.0,47185.0,2.21724615]
[1641019390035,0.00023735,47186.0,47185.0,2.19762853]
[1641019390838,0.00023735,47186.0,47185.0,2.2168617]
[1641019391135,0.00023735,47186.0,47185.0,2.1950009]
[1641019391536,0.00884735,47186.0,47185.0,2.1950009]
[1641019391937,0.00884735,47186.0,47185.0,3.40211837]
[1641019392935,0.00884735,47186.0,47185.0,3.42252284]
[1641019393136,0.00884735,47186.0,47185.0,3.40073174]
[1641019393776,0.00884735,47186.0,47185.0,3.41879697]
[1641019393978,0.00884735,47186.0,47185.0,3.3983925]
[1641019395378,0.00884735,47186.0,47185.0,3.41858268]
[1641019395577,0.00884735,47186.0,47185.0,3.40051745]
[1641019396380,0.00861,47186.0,47185.0,3.40051745]
[1641019396578,0.00861,47186.0,47185.0,3.3659438]
[1641019397439,0.00861,47186.0,47185.0,3.43318372]
[1641019397639,0.00861,47186.0,47185.0,3.41299354]
[1641019397840,0.00861,47186.0,47185.0,3.43283095]
[1641019398140,0.00861,47186.0,47185.0,3.41381863]
[1641019398941,0.00861,47186.0,47185.0,3.43335595]
[1641019399138,0.00861,47186.0,47185.0,3.41351854]
[1641019400440,0.00861,47186.0,47185.0,3.43163899]
[1641019400640,0.00861,47186.0,47185.0,3.41210167]
[1641019400884,0.00861,47186.0,47185.0,3.43019394]
[1641019401075,0.00861,47186.0,47185.0,3.41207349]
[1641019401376,0.00861,47187.0,47185.0,3.46207349]
[1641019401575,0.00861,47187.0,47186.0,1.9712464]
[1641019401979,0.0088291,47187.0,47186.0,2.0712464]
[1641019402576,0.0088291,47187.0,47186.0,3.27580594]
[1641019402877,0.0174391,47187.0,47186.0,3.29980869]
[1641019403077,0.0174391,47187.0,47186.0,3.29458294]
[1641019403877,0.0174391,47187.0,47186.0,3.31391556]
[1641019404077,0.0174391,47187.0,47186.0,3.29513856]
[1641019404844,0.0174391,47187.0,47186.0,1.69382338]
[1641019405044,0.0174391,47187.0,47186.0,1.59382338]
[1641019405242,0.0174391,47187.0,47186.0,1.56544031]
[1641019405443,0.0174391,47187.0,47186.0,0.36088077]
[1641019405643,0.0155391,47187.0,47186.0,0.36993122]
[1641019405842,0.0155391,47187.0,47186.0,0.3913826]
[1641019406044,0.0155391,47187.0,47186.0,0.36991383]
[1641019407044,0.0155391,47187.0,47186.0,0.36893505]
[1641019407247,0.0155391,47187.0,47186.0,0.3598846]
[1641019408046,0.0155391,47187.0,47186.0,0.38153321]
[1641019408245,0.0155391,47187.0,47186.0,0.36106061]
[1641019408482,0.0155391,47187.0,47186.0,0.02164861]
[1641019408682,0.0155391,47187.0,47186.0,0.36106061]
[1641019409081,0.0155391,47187.0,47186.0,0.38186322]
[1641019409283,0.0155391,47187.0,47186.0,0.36021461]
[1641019409483,0.0655391,47187.0,47186.0,0.36021461]
[1641019409683,0.34245976,47187.0,47186.0,0.02080261]
[1641019409889,0.1694021,47187.0,47186.0,0.02080261]
[1641019410286,0.17061743,47187.0,47186.0,0.02080261]
[1641019410487,0.17061743,47187.0,47186.0,0.03899776]
[1641019410488,1.23061743,47187.0,47186.0,0.03899776]
[1641019410785,1.33061743,47187.0,47186.0,0.01819515]
[1641019411488,0.27061743,47187.0,47186.0,0.01819515]
[1641019411690,0.18342743,47187.0,47186.0,0.01819515]
[1641019411885,0.08342743,47187.0,47186.0,0.01819515]
[1641019412139,0.08342743,47187.0,47177.0,0.28421342]
[1641019412342,0.08342743,47187.0,47178.0,0.339412]
[1641019412343,0.08598565,47187.0,47178.0,0.339412]
[1641019412544,0.00020084,47186.0,47178.0,0.339412]
[1641019412839,0.00018258,47185.0,47178.0,0.339412]
[1641019413039,0.00018258,47185.0,47178.0,0.018854]
[1641019413240,0.00016432,47184.0,47179.0,0.339412]
[1641019413640,0.00014607,47183.0,47179.0,0.339412]
[1641019414042,0.00012781,47182.0,47179.0,0.35839034]
[1641019414440,0.00010955,47181.0,47179.0,0.35839034]
[1641019414841,9.129e-05,47180.0,47179.0,0.35839034]
[1641019415047,9.129e-05,47180.0,47179.0,0.37984026]
[1641019415246,0.00018258,47180.0,47179.0,0.36086192]
[1641019416104,0.00018258,47180.0,47179.0,0.38264215]
[1641019416307,0.00018258,47180.0,47179.0,0.339412]
[1641019417108,0.00018258,47180.0,47179.0,0.35901366]
[1641019418008,0.00018258,47180.0,47179.0,0.37838195]
[1641019418207,0.00018258,47180.0,47179.0,0.35878029]
[1641019419207,0.00018258,47180.0,47179.0,0.35802701]
[1641019420833,0.00018258,47180.0,47179.0,0.37789262]
[1641019421250,0.00018258,47180.0,47179.0,0.339412]
[1641019421434,0.00018258,47180.0,47179.0,0.36033543]
[1641019422034,0.00018258,47180.0,47179.0,0.38010909]
[1641019423236,0.00018258,47180.0,47179.0,0.39858689]
[1641019423497,0.00018258,47180.0,47179.0,0.3578898]
[1641019424698,0.00018258,47180.0,47179.0,0.37955469]
[1641019424896,0.00018258,47180.0,47179.0,0.36107689]
[1641019425099,0.00018258,47180.0,47179.0,1.09752878]
[1641019425298,0.00018258,47180.0,47179.0,1.35738989]
[1641019425698,0.00018258,47180.0,47179.0,1.09752878]
[1641019426198,0.00018258,47180.0,47179.0,0.40184806]
[1641019426399,0.00018258,47180.0,47179.0,0.36131605]
[1641019426799,0.00018258,47180.0,47179.0,1.07905788]
[1641019427238,0.00018258,47180.0,47179.0,1.09889569]
[1641019427438,0.00018258,47180.0,47179.0,1.07699164]
[1641019427638,0.00018258,47180.0,47179.0,0.95788817]
[1641019428239,0.00018258,47180.0,47179.0,0.97590303]
[1641019428439,0.00018258,47180.0,47179.0,0.95606522]
[1641019429241,0.00018258,47180.0,47179.0,0.97525793]
[1641019429441,0.00018258,47180.0,47179.0,0.95724307]
[1641019429943,0.00018258,47180.0,47179.0,1.05724307]
[1641019430142,0.00018258,47180.0,47179.0,1.24304025]
[1641019430344,0.00018258,47180.0,47179.0,0.62520918]
[1641019431202,0.00018258,47180.0,47179.0,2.68735113]
[1641019431405,0.00018258,47180.0,47179.0,2.66830638]
[1641019431801,0.00018258,47180.0,47179.0,2.40155395]
[1641019432201,0.00018258,47180.0,47179.0,2.41988003]
[1641019432501,0.00018258,47180.0,47179.0,2.39985644]
[1641019432702,0.00018258,47180.0,47179.0,0.45773808]
[1641019433106,0.00018258,47180.0,47179.0,0.47659039]
[1641019433300,0.00018258,47180.0,47179.0,0.45826431]
[1641019434741,0.00018258,47180.0,47179.0,0.47701698]
[1641019434942,0.00018258,47180.0,47179.0,0.45816467]
[1641019435141,0.00018258,47180.0,47179.0,0.47955484]
[1641019435345,0.00018258,47180.0,47179.0,0.46080217]
[1641019436143,0.00018258,47180.0,47179.0,0.74586547]
[1641019436343,0.00018258,47180.0,47179.0,0.7244753]
[1641019437242,0.00018258,47180.0,47179.0,0.74311748]
[1641019437443,0.00018258,47180.0,47179.0,0.72399352]
[1641019438044,0.00018258,47180.0,47179.0,0.45805418]
[1641019438252,0.00018258,47180.0,47179.0,0.47728025]
[1641019438492,0.00018258,47180.0,47179.0,0.45863807]
[1641019439793,0.00018258,47180.0,47179.0,0.47716419]
[1641019439994,0.00018258,47180.0,47179.0,0.45793812]
[1641019440196,0.00018258,47180.0,47179.0,0.35793812]
[1641019440396,0.00018258,47180.0,47179.0,0.37694336]
[1641019440600,0.00018258,47180.0,47179.0,0.35841724]
[1641019441398,0.00018258,47180.0,47179.0,0.35943715]
[1641019441597,0.00018258,47180.0,47179.0,0.62704191]
[1641019441798,0.00879258,47180.0,47179.0,0.72704191]
[1641019442250,0.00879258,47180.0,47179.0,0.74877485]
[1641019442449,0.00879258,47180.0,47179.0,0.7287497]
[1641019442850,0.00879258,47180.0,47179.0,0.46114494]
[1641019443455,0.00879258,47180.0,47179.0,0.48297807]
[1641019443653,0.00879258,47180.0,47179.0,0.72053104]
[1641019444252,0.00879258,47180.0,47179.0,0.74075965]
[1641019444453,0.00879258,47180.0,47179.0,0.45964061]
[1641019444653,0.00879258,47180.0,47179.0,0.72311492]
[1641019445253,0.00879258,47180.0,47179.0,0.7431553]
[1641019445254,0.00861,47180.0,47179.0,0.7431553]
[1641019445454,0.00861,47180.0,47179.0,1.84592669]
[1641019445657,0.00861,47180.0,47179.0,0.72292669]
[1641019445893,0.00861,47180.0,47179.0,0.45945238]
[1641019446292,0.00861,47180.0,47179.0,0.73799795]
[1641019446490,0.00861,47180.0,47179.0,0.71795757]
[1641019447290,0.00861,47180.0,47179.0,0.73835629]
[1641019447492,0.00861,47180.0,47179.0,1.84316378]
[1641019448292,0.00861,47180.0,47179.0,1.86266167]
[1641019448491,0.00861,47180.0,47179.0,0.71926295]
[1641019448697,0.00861,47180.0,47179.0,0.45890989]
[1641019449291,0.00861,47180.0,47179.0,0.47756595]
[1641019449492,0.00861,47180.0,47179.0,0.45806806]
[1641019450439,0.00861,47180.0,47179.0,0.72147189]
[1641019451036,0.00861,47180.0,47179.0,1.92623767]
[1641019451436,0.00861,47180.0,47179.0,1.94599009]
[1641019451639,0.00861,47180.0,47179.0,1.92428382]
[1641019452437,0.00861,47180.0,47179.0,1.92407176]
[1641019452637,0.00861,47180.0,47179.0,1.66371814]
[1641019453394,0.00861,47180.0,47179.0,1.68352169]
[1641019453599,0.00861,47180.0,47179.0,1.66398133]
[1641019454399,0.00861,47180.0,47179.0,1.68376835]
[1641019454599,0.00861,47180.0,47179.0,1.6639648]
[1641019455397,0.00861,47180.0,47179.0,1.68514545]
[1641019455600,0.00861,47180.0,47179.0,2.49974369]
[1641019455799,0.00861,47180.0,47179.0,1.29497791]
[1641019456402,0.00861,47180.0,47179.0,0.48098152]
[1641019456599,0.00861,47180.0,47179.0,0.45980087]
[1641019457438,0.00861,47180.0,47179.0,0.47913008]
[1641019457636,0.00861,47180.0,47179.0,0.45874121]
[1641019458536,0.00861,47180.0,47179.0,0.45940627]
[1641019459534,0.00861,47180.0,47179.0,0.45931333]
[1641019459936,0.00861,47180.0,47179.0,0.56528233]
[1641019460336,0.00861,47180.0,47179.0,0.58624789]
[1641019460535,0.00861,47180.0,47179.0,0.56634656]
[1641019460912,0.00861,47180.0,47178.0,0.25314335]
[1641019460913,1.06,47179.0,47178.0,0.25314335]
[1641019461108,1.06,47179.0,47171.0,0.95973043]
[1641019461109,0.053014,47175.0,47171.0,0.95973043]
[1641019461309,0.00120843,47172.0,47171.0,0.95973043]
[1641019461706,0.00120843,47172.0,47171.0,0.95980346]
[1641019461905,0.00120843,47172.0,47171.0,0.59705846]
[1641019462808,0.59120842,47172.0,47171.0,7.303e-05]
[1641019463005,0.71090042,47172.0,47171.0,7.303e-05]
[1641019463204,0.71090042,47172.0,47167.0,0.00014606]
[1641019463205,0.65788142,47172.0,47167.0,0.00014606]
[1641019463406,0.64120842,47172.0,47167.0,0.00014606]